[Event "Late-Titled-Tuesday-Blitz-April-16-2024"]
[Site "Chess.com"]
[Date "2024.04.16"]
[Round "9"]
[White "Cluke86"]
[Black "Licancabur"]
[Result "0-1"]
[WhiteElo "2337"]
[BlackElo "2449"]
[TimeControl "180+1"]
[EndTime "15:45:12 PDT"]
[Termination "Licancabur won by resignation"]

1. e4 {[%clk 0:03:00.9]} 1... Nf6 {[%clk 0:02:58.4]} 2. e5 {[%clk 0:03:00.6]}
2... Nd5 {[%clk 0:02:58.9]} 3. c4 {[%clk 0:03:00.5]} 3... Nb6 {[%clk 0:02:58.7]}
4. d4 {[%clk 0:03:00.8]} 4... d6 {[%clk 0:02:59.2]} 5. exd6 {[%clk 0:03:00.8]}
5... cxd6 {[%clk 0:02:58.9]} 6. Nc3 {[%clk 0:03:00.8]} 6... g6 {[%clk
0:02:59.4]} 7. Be3 {[%clk 0:03:01.1]} 7... Bg7 {[%clk 0:02:59.6]} 8. Rc1 {[%clk
0:03:01.6]} 8... e5 {[%clk 0:02:37.7]} 9. dxe5 {[%clk 0:02:54.4]} 9... dxe5
{[%clk 0:02:37.3]} 10. Qxd8+ {[%clk 0:02:52.9]} 10... Kxd8 {[%clk 0:02:37.5]}
11. c5 {[%clk 0:02:50.2]} 11... N6d7 {[%clk 0:02:33.5]} 12. Bc4 {[%clk 0:02:49]}
12... f5 {[%clk 0:02:20.4]} 13. f4 {[%clk 0:02:40.5]} 13... Re8 {[%clk
0:02:09.1]} 14. Nge2 {[%clk 0:02:36.8]} 14... Nc6 {[%clk 0:02:01.8]} 15. O-O
{[%clk 0:02:28.9]} 15... Na5 {[%clk 0:01:25.5]} 16. Bb5 {[%clk 0:02:27.1]} 16...
a6 {[%clk 0:01:17.9]} 17. Bxd7 {[%clk 0:02:09.1]} 17... Bxd7 {[%clk 0:01:15.6]}
18. fxe5 {[%clk 0:02:09.5]} 18... Bxe5 {[%clk 0:01:14.2]} 19. Bg5+ {[%clk
0:02:07]} 19... Kc8 {[%clk 0:01:04.8]} 20. b4 {[%clk 0:02:03.8]} 20... Nc6
{[%clk 0:00:57.2]} 21. Nd5 {[%clk 0:02:03.7]} 21... Bc7 {[%clk 0:00:45.6]} 22.
Nec3 {[%clk 0:02:04]} 22... Nd4 {[%clk 0:00:30.4]} 23. Rfe1 {[%clk 0:01:51.7]}
23... Ne6 {[%clk 0:00:28.5]} 24. Bd2 {[%clk 0:01:44.9]} 24... Bb5 {[%clk
0:00:23.9]} 25. a4 {[%clk 0:01:43.5]} 25... Bd3 {[%clk 0:00:22.2]} 26. Nb6+
{[%clk 0:01:18.5]} 26... Bxb6 {[%clk 0:00:21.2]} 27. cxb6 {[%clk 0:01:19.4]}
27... Kd7 {[%clk 0:00:19.4]} 28. Red1 {[%clk 0:01:17]} 28... Ke7 {[%clk
0:00:18.1]} 29. Bg5+ {[%clk 0:01:15.7]} 29... Nxg5 {[%clk 0:00:16.9]} 30. Rxd3
{[%clk 0:01:14.9]} 30... Rad8 {[%clk 0:00:17.2]} 31. Re1+ {[%clk 0:01:14]} 31...
Kf7 {[%clk 0:00:17.2]} 32. Rxe8 {[%clk 0:01:11]} 32... Kxe8 {[%clk 0:00:16.9]}
33. Re3+ {[%clk 0:01:05.2]} 33... Kd7 {[%clk 0:00:16.4]} 34. b5 {[%clk
0:01:01.5]} 34... axb5 {[%clk 0:00:15.5]} 35. axb5 {[%clk 0:00:57.7]} 35... Rc8
{[%clk 0:00:13.9]} 36. Nd5 {[%clk 0:00:57.3]} 36... Ne4 {[%clk 0:00:12.9]} 37.
g4 {[%clk 0:00:54.5]} 37... Kd6 {[%clk 0:00:12.5]} 38. Nc7 {[%clk 0:00:46]}
38... Ke5 {[%clk 0:00:12.1]} 39. gxf5 {[%clk 0:00:44.5]} 39... gxf5 {[%clk
0:00:11.9]} 40. Kg2 {[%clk 0:00:44.7]} 40... Rd8 {[%clk 0:00:12.2]} 41. Kf3
{[%clk 0:00:41.8]} 41... Rd2 {[%clk 0:00:12.1]} 42. Rb3 {[%clk 0:00:36.7]} 42...
Rxh2 {[%clk 0:00:11.2]} 43. Rd3 {[%clk 0:00:34.6]} 43... Rh3+ {[%clk 0:00:06.1]}
44. Ke2 {[%clk 0:00:34.1]} 44... Rxd3 {[%clk 0:00:06.3]} 45. Kxd3 {[%clk
0:00:34.3]} 45... Nd6 {[%clk 0:00:07.1]} 46. Ke3 {[%clk 0:00:29.4]} 46... h5
{[%clk 0:00:07.1]} 47. Kf3 {[%clk 0:00:29.3]} 47... h4 {[%clk 0:00:07.8]} 48.
Na6 {[%clk 0:00:19.7]} 48... Nxb5 {[%clk 0:00:07.1]} 49. Nc5 {[%clk 0:00:19.7]}
49... Nd6 {[%clk 0:00:06.1]} 50. Nd3+ {[%clk 0:00:19.2]} 50... Kd4 {[%clk
0:00:06.2]} 51. Nf4 {[%clk 0:00:18.8]} 51... Kc5 {[%clk 0:00:06.2]} 52. Ng6
{[%clk 0:00:16.9]} 52... h3 {[%clk 0:00:06.1]} 53. Kg3 {[%clk 0:00:15.4]} 53...
Kxb6 {[%clk 0:00:06.1]} 54. Kxh3 {[%clk 0:00:15.6]} 54... Kc5 {[%clk 0:00:06.6]}
55. Kg3 {[%clk 0:00:15.9]} 55... Kd4 {[%clk 0:00:06.6]} 56. Kf3 {[%clk
0:00:16.2]} 56... b5 {[%clk 0:00:07.2]} 57. Nf4 {[%clk 0:00:15.6]} 57... Kc3
{[%clk 0:00:06.6]} 58. Nd5+ {[%clk 0:00:12.1]} 58... Kc4 {[%clk 0:00:06.8]} 59.
Ne3+ {[%clk 0:00:11.7]} 59... Kd3 {[%clk 0:00:06.5]} 60. Nd5 {[%clk 0:00:11.1]}
60... Kd4 {[%clk 0:00:07.2]} 61. Nb4 {[%clk 0:00:08.6]} 61... Kc4 {[%clk
0:00:06.7]} 62. Nc6 {[%clk 0:00:07.7]} 62... b4 {[%clk 0:00:06.8]} 63. Ne5+
{[%clk 0:00:06.5]} 63... Kc3 {[%clk 0:00:06.9]} 64. Kf4 {[%clk 0:00:06.7]} 64...
b3 {[%clk 0:00:07]} 65. Nf3 {[%clk 0:00:07]} 65... b2 {[%clk 0:00:06.8]} 0-1

[Event "Late-Titled-Tuesday-Blitz-April-16-2024"]
[Site "Chess.com"]
[Date "2024.04.16"]
[Round "9"]
[White "ansko1999"]
[Black "Yushko_Olga"]
[Result "1-0"]
[WhiteElo "2588"]
[BlackElo "2320"]
[TimeControl "180+1"]
[EndTime "15:45:16 PDT"]
[Termination "ansko1999 won by checkmate"]

1. c4 {[%clk 0:03:00.9]} 1... Nf6 {[%clk 0:02:53.1]} 2. Nc3 {[%clk 0:03:00.3]}
2... e6 {[%clk 0:02:53.3]} 3. e4 {[%clk 0:02:59.4]} 3... d5 {[%clk 0:02:52.5]}
4. cxd5 {[%clk 0:02:59.8]} 4... exd5 {[%clk 0:02:52.8]} 5. e5 {[%clk 0:03:00.5]}
5... Ne4 {[%clk 0:02:52.3]} 6. Nf3 {[%clk 0:02:57.7]} 6... Bg4 {[%clk
0:02:41.9]} 7. h3 {[%clk 0:02:35.9]} 7... Bh5 {[%clk 0:02:41]} 8. Nxe4 {[%clk
0:02:24.6]} 8... dxe4 {[%clk 0:02:40.8]} 9. Qa4+ {[%clk 0:02:24.9]} 9... Nc6
{[%clk 0:02:40.3]} 10. Qxe4 {[%clk 0:02:24.7]} 10... Bg6 {[%clk 0:02:35.4]} 11.
Qa4 {[%clk 0:02:20.5]} 11... Bc5 {[%clk 0:02:33.4]} 12. d4 {[%clk 0:02:11.1]}
12... Bxd4 {[%clk 0:02:27.3]} 13. Bb5 {[%clk 0:02:11.4]} 13... Bb6 {[%clk
0:02:00.6]} 14. Bxc6+ {[%clk 0:02:08.1]} 14... bxc6 {[%clk 0:02:01.5]} 15. Qxc6+
{[%clk 0:02:08.8]} 15... Kf8 {[%clk 0:01:59.9]} 16. O-O {[%clk 0:01:57]} 16...
Rb8 {[%clk 0:01:58.8]} 17. Bg5 {[%clk 0:01:55]} 17... Qe8 {[%clk 0:01:46.8]} 18.
Qc3 {[%clk 0:01:48.9]} 18... h6 {[%clk 0:01:45.2]} 19. Be3 {[%clk 0:01:41.4]}
19... Kg8 {[%clk 0:01:38.6]} 20. Bxb6 {[%clk 0:01:38]} 20... cxb6 {[%clk
0:01:39.5]} 21. Rac1 {[%clk 0:01:31.7]} 21... Kh7 {[%clk 0:01:39.2]} 22. Qc7
{[%clk 0:01:27.1]} 22... a5 {[%clk 0:01:32.8]} 23. Rfd1 {[%clk 0:01:22.6]} 23...
Qb5 {[%clk 0:01:26.8]} 24. b3 {[%clk 0:01:16.7]} 24... Bh5 {[%clk 0:01:20.2]}
25. Nd4 {[%clk 0:01:09.9]} 25... Qd5 {[%clk 0:01:10.6]} 26. g4 {[%clk 0:00:53]}
26... Rhc8 {[%clk 0:01:10]} 27. Qd6 {[%clk 0:00:40.8]} 27... Rxc1 {[%clk
0:00:59.4]} 28. Rxc1 {[%clk 0:00:38.6]} 28... Qxd6 {[%clk 0:00:45.6]} 29. exd6
{[%clk 0:00:38.8]} 29... Bg6 {[%clk 0:00:46.5]} 30. Rc7 {[%clk 0:00:25.1]} 30...
Rd8 {[%clk 0:00:45.4]} 31. d7 {[%clk 0:00:24]} 31... Be4 {[%clk 0:00:45.5]} 32.
Nb5 {[%clk 0:00:20.6]} 32... Bd5 {[%clk 0:00:40.4]} 33. Nd6 {[%clk 0:00:19.1]}
33... Be6 {[%clk 0:00:40.3]} 34. Nc8 {[%clk 0:00:12.1]} 34... Rxd7 {[%clk
0:00:36.6]} 35. Rxd7 {[%clk 0:00:11.1]} 35... Bxd7 {[%clk 0:00:36.8]} 36. Nxb6
{[%clk 0:00:12]} 36... Bc6 {[%clk 0:00:35.9]} 37. Kh2 {[%clk 0:00:11.2]} 37...
Kg6 {[%clk 0:00:35.4]} 38. Kg3 {[%clk 0:00:11.6]} 38... Kf6 {[%clk 0:00:35]} 39.
Kf4 {[%clk 0:00:10.3]} 39... Ke6 {[%clk 0:00:34.6]} 40. h4 {[%clk 0:00:10]}
40... Bb5 {[%clk 0:00:30.6]} 41. Nc4 {[%clk 0:00:09.4]} 41... a4 {[%clk
0:00:29.3]} 42. Ke4 {[%clk 0:00:06.4]} 42... axb3 {[%clk 0:00:25]} 43. axb3
{[%clk 0:00:07.3]} 43... Bc6+ {[%clk 0:00:25.4]} 44. Kd4 {[%clk 0:00:07.4]}
44... Bf3 {[%clk 0:00:24.9]} 45. Ne3 {[%clk 0:00:07.3]} 45... Kd6 {[%clk
0:00:23.7]} 46. Nf5+ {[%clk 0:00:06.7]} 46... Kc6 {[%clk 0:00:19]} 47. g5 {[%clk
0:00:05.2]} 47... hxg5 {[%clk 0:00:18.5]} 48. hxg5 {[%clk 0:00:06.1]} 48... g6
{[%clk 0:00:19]} 49. Ne3 {[%clk 0:00:06.3]} 49... Be2 {[%clk 0:00:16.2]} 50. Ke5
{[%clk 0:00:06.2]} 50... Kd7 {[%clk 0:00:10.5]} 51. Kf6 {[%clk 0:00:05.7]} 51...
Ke8 {[%clk 0:00:10.9]} 52. b4 {[%clk 0:00:05.4]} 52... Bb5 {[%clk 0:00:10.4]}
53. Ng4 {[%clk 0:00:04.3]} 53... Bc4 {[%clk 0:00:07.3]} 54. Ne5 {[%clk
0:00:05.2]} 54... Bd5 {[%clk 0:00:07.5]} 55. b5 {[%clk 0:00:05.7]} 55... Kf8
{[%clk 0:00:07.7]} 56. b6 {[%clk 0:00:06.6]} 56... Ke8 {[%clk 0:00:08.1]} 57.
Nxf7 {[%clk 0:00:05.5]} 57... Bc6 {[%clk 0:00:06.9]} 58. Nd6+ {[%clk 0:00:05.8]}
58... Kd7 {[%clk 0:00:06.3]} 59. b7 {[%clk 0:00:06.5]} 59... Kc7 {[%clk
0:00:06.8]} 60. Nf7 {[%clk 0:00:06.4]} 60... Bxb7 {[%clk 0:00:06.8]} 61. Kxg6
{[%clk 0:00:06.9]} 61... Kd7 {[%clk 0:00:07.2]} 62. Kf6 {[%clk 0:00:07.8]} 62...
Ke8 {[%clk 0:00:07.6]} 63. g6 {[%clk 0:00:08.1]} 63... Kf8 {[%clk 0:00:07.9]}
64. g7+ {[%clk 0:00:08.6]} 64... Kg8 {[%clk 0:00:08]} 65. Nh6+ {[%clk
0:00:09.4]} 65... Kh7 {[%clk 0:00:08.3]} 66. g8=Q+ {[%clk 0:00:10.3]} 66... Kxh6
{[%clk 0:00:08.9]} 67. Qg6# {[%clk 0:00:11.2]} 1-0

[Event "Late-Titled-Tuesday-Blitz-April-16-2024"]
[Site "Chess.com"]
[Date "2024.04.16"]
[Round "9"]
[White "chess_sharparchitect"]
[Black "KorolDimitriy75"]
[Result "1/2-1/2"]
[WhiteElo "2238"]
[BlackElo "2316"]
[TimeControl "180+1"]
[EndTime "15:46:21 PDT"]
[Termination "Game drawn by repetition"]

1. c4 {[%clk 0:03:00.9]} 1... c5 {[%clk 0:03:00]} 2. Nf3 {[%clk 0:03:00.4]} 2...
g6 {[%clk 0:03:00.2]} 3. d4 {[%clk 0:02:57]} 3... cxd4 {[%clk 0:03:01.1]} 4.
Nxd4 {[%clk 0:02:57.3]} 4... Bg7 {[%clk 0:03:01.3]} 5. Nc3 {[%clk 0:02:56.2]}
5... Nc6 {[%clk 0:03:01.4]} 6. e3 {[%clk 0:02:53.1]} 6... Nf6 {[%clk 0:02:59]}
7. Be2 {[%clk 0:02:53]} 7... O-O {[%clk 0:02:58.5]} 8. Bf3 {[%clk 0:02:47.5]}
8... Ne5 {[%clk 0:02:50.5]} 9. Be2 {[%clk 0:02:42.5]} 9... d6 {[%clk 0:02:50.3]}
10. O-O {[%clk 0:02:40.1]} 10... Bd7 {[%clk 0:02:48.5]} 11. h3 {[%clk
0:02:38.9]} 11... Qa5 {[%clk 0:02:30.9]} 12. Bd2 {[%clk 0:02:33.9]} 12... Rfc8
{[%clk 0:02:29.1]} 13. Nd5 {[%clk 0:02:05.4]} 13... Qd8 {[%clk 0:02:28.8]} 14.
Rc1 {[%clk 0:01:59.2]} 14... Ne4 {[%clk 0:01:40.4]} 15. b3 {[%clk 0:01:47.1]}
15... Nxd2 {[%clk 0:01:32.1]} 16. Qxd2 {[%clk 0:01:46.2]} 16... Rab8 {[%clk
0:01:25.9]} 17. f4 {[%clk 0:01:42.8]} 17... Nc6 {[%clk 0:01:25.9]} 18. Bf3
{[%clk 0:01:39.2]} 18... e6 {[%clk 0:01:14.7]} 19. Nc3 {[%clk 0:01:34.4]} 19...
Nxd4 {[%clk 0:00:49.3]} 20. exd4 {[%clk 0:01:34.1]} 20... Qb6 {[%clk 0:00:48.7]}
21. Rcd1 {[%clk 0:01:27.4]} 21... Qb4 {[%clk 0:00:39.3]} 22. Ne4 {[%clk
0:01:10.7]} 22... Qxd2 {[%clk 0:00:20.7]} 23. Rxd2 {[%clk 0:01:11.6]} 23... d5
{[%clk 0:00:16.1]} 24. Nc5 {[%clk 0:01:01]} 24... Bc6 {[%clk 0:00:15.2]} 25.
cxd5 {[%clk 0:00:49.5]} 25... exd5 {[%clk 0:00:14.9]} 26. b4 {[%clk 0:00:48.2]}
26... b6 {[%clk 0:00:14.3]} 27. Nb3 {[%clk 0:00:46.7]} 27... Bb5 {[%clk
0:00:14.3]} 28. Re1 {[%clk 0:00:37.7]} 28... Bc4 {[%clk 0:00:14.2]} 29. Re7
{[%clk 0:00:32.9]} 29... a6 {[%clk 0:00:12.2]} 30. Kh2 {[%clk 0:00:24.7]} 30...
Bf8 {[%clk 0:00:12.1]} 31. Rd7 {[%clk 0:00:20.4]} 31... Bxb4 {[%clk 0:00:12.5]}
32. Rf2 {[%clk 0:00:18.8]} 32... Rd8 {[%clk 0:00:11.6]} 33. Ra7 {[%clk
0:00:18.1]} 33... a5 {[%clk 0:00:10.9]} 34. f5 {[%clk 0:00:18.1]} 34... Rf8
{[%clk 0:00:08]} 35. fxg6 {[%clk 0:00:14.7]} 35... hxg6 {[%clk 0:00:08.9]} 36.
Bg4 {[%clk 0:00:14.8]} 36... Bc3 {[%clk 0:00:08]} 37. Rd7 {[%clk 0:00:11.8]}
37... Bxb3 {[%clk 0:00:07.2]} 38. axb3 {[%clk 0:00:12.2]} 38... Bxd4 {[%clk
0:00:07.2]} 39. Re2 {[%clk 0:00:10.6]} 39... Bc5 {[%clk 0:00:06]} 40. Rxd5
{[%clk 0:00:10.4]} 40... Rbd8 {[%clk 0:00:05.6]} 41. Red2 {[%clk 0:00:09.7]}
41... Rxd5 {[%clk 0:00:05]} 42. Rxd5 {[%clk 0:00:10.6]} 42... Kg7 {[%clk
0:00:05.2]} 43. Kg3 {[%clk 0:00:09]} 43... f5 {[%clk 0:00:04.7]} 44. Bf3 {[%clk
0:00:09]} 44... Kf6 {[%clk 0:00:04.9]} 45. Rd7 {[%clk 0:00:08.9]} 45... Re8
{[%clk 0:00:04.7]} 46. h4 {[%clk 0:00:08.6]} 46... Re3 {[%clk 0:00:04]} 47. Kf4
{[%clk 0:00:07.3]} 47... Rxb3 {[%clk 0:00:02.8]} 48. Bd5 {[%clk 0:00:07.4]}
48... Be3+ {[%clk 0:00:01.9]} 49. Kf3 {[%clk 0:00:05.2]} 49... Rc3 {[%clk
0:00:02.5]} 50. h5 {[%clk 0:00:03.9]} 50... gxh5 {[%clk 0:00:02.1]} 51. Ke2
{[%clk 0:00:04.5]} 51... f4 {[%clk 0:00:01.7]} 52. Bf3 {[%clk 0:00:03.8]} 52...
h4 {[%clk 0:00:01.6]} 53. Rd6+ {[%clk 0:00:03.5]} 53... Ke5 {[%clk 0:00:01.3]}
54. Rd5+ {[%clk 0:00:03.8]} 54... Ke6 {[%clk 0:00:01.9]} 55. Rh5 {[%clk
0:00:04]} 55... Ke7 {[%clk 0:00:02.1]} 56. Rxh4 {[%clk 0:00:04.2]} 56... Rc2+
{[%clk 0:00:02.7]} 57. Kd3 {[%clk 0:00:03.3]} 57... Rb2 {[%clk 0:00:03.6]} 58.
Rh7+ {[%clk 0:00:03.3]} 58... Kd6 {[%clk 0:00:03.9]} 59. Rh6+ {[%clk 0:00:03.8]}
59... Kc5 {[%clk 0:00:04.3]} 60. Kc3 {[%clk 0:00:04]} 60... Rb1 {[%clk
0:00:04.1]} 61. Rc6+ {[%clk 0:00:04.2]} 61... Kb5 {[%clk 0:00:04.3]} 62. Re6
{[%clk 0:00:04.4]} 62... a4 {[%clk 0:00:04.6]} 63. Be2+ {[%clk 0:00:04.6]} 63...
Ka5 {[%clk 0:00:05]} 64. Re5+ {[%clk 0:00:04.8]} 64... b5 {[%clk 0:00:04.6]} 65.
Re8 {[%clk 0:00:03.9]} 65... Rc1+ {[%clk 0:00:05.5]} 66. Kb2 {[%clk 0:00:03.4]}
66... Rc5 {[%clk 0:00:04.7]} 67. Ra8+ {[%clk 0:00:03.9]} 67... Kb4 {[%clk
0:00:05]} 68. Re8 {[%clk 0:00:03.4]} 68... a3+ {[%clk 0:00:05.5]} 69. Kb1 {[%clk
0:00:03.7]} 69... Kb3 {[%clk 0:00:05.7]} 70. Bd1+ {[%clk 0:00:02.9]} 70... Kb4
{[%clk 0:00:05.9]} 71. Re4+ {[%clk 0:00:03.4]} 71... Rc4 {[%clk 0:00:05.8]} 72.
Rxc4+ {[%clk 0:00:03.1]} 72... Kxc4 {[%clk 0:00:06.7]} 73. Ka2 {[%clk
0:00:02.3]} 73... b4 {[%clk 0:00:06.7]} 74. Be2+ {[%clk 0:00:02.7]} 74... Kc3
{[%clk 0:00:07.6]} 75. Bd1 {[%clk 0:00:02.7]} 75... Bc1 {[%clk 0:00:07.9]} 76.
Bb3 {[%clk 0:00:02.8]} 76... Bb2 {[%clk 0:00:08]} 77. Bd5 {[%clk 0:00:02.9]}
77... Kc2 {[%clk 0:00:07.8]} 78. Bb3+ {[%clk 0:00:02.6]} 78... Kc1 {[%clk
0:00:07.2]} 79. Bd5 {[%clk 0:00:02.4]} 79... Bc3 {[%clk 0:00:08]} 80. Bc4 {[%clk
0:00:01.9]} 80... Kd2 {[%clk 0:00:08.2]} 81. Bd5 {[%clk 0:00:02]} 81... Ke3
{[%clk 0:00:08.5]} 82. Kb3 {[%clk 0:00:01.9]} 82... Kd4 {[%clk 0:00:08.5]} 83.
Bf3 {[%clk 0:00:01.6]} 83... Ke3 {[%clk 0:00:08.5]} 84. Bd5 {[%clk 0:00:01.7]}
84... Kd2 {[%clk 0:00:08.8]} 85. Bc6 {[%clk 0:00:02.3]} 85... Kc1 {[%clk
0:00:09.1]} 86. Be4 {[%clk 0:00:02.7]} 86... Bd2 {[%clk 0:00:08.3]} 87. Bd3
{[%clk 0:00:02.4]} 87... Bc3 {[%clk 0:00:07.7]} 88. Be4 {[%clk 0:00:02.9]} 88...
Kd2 {[%clk 0:00:07.3]} 89. Bf3 {[%clk 0:00:03]} 89... Kd3 {[%clk 0:00:07]} 90.
Bd5 {[%clk 0:00:03.3]} 90... Kd4 {[%clk 0:00:06.9]} 91. Bf3 {[%clk 0:00:03.9]}
91... Ke3 {[%clk 0:00:06.5]} 92. Bc6 {[%clk 0:00:04]} 92... Kf2 {[%clk
0:00:06.3]} 93. Bd5 {[%clk 0:00:04.2]} 93... Ke1 {[%clk 0:00:06.1]} 94. Be4
{[%clk 0:00:04.4]} 94... Kd2 {[%clk 0:00:06.3]} 95. Bd5 {[%clk 0:00:04.8]} 95...
Kc1 {[%clk 0:00:06.5]} 96. Be4 {[%clk 0:00:04.7]} 1/2-1/2